[Event "*** Titled Tuesday Blitz"]
[Site "Chess.com"]
[Date "2021.02.02"]
[Round "3"]
[White "harvsp123"]
[Black "Kotofeyca"]
[Result "0-1"]
[WhiteElo "2557"]
[BlackElo "2397"]
[TimeControl "180+1"]
[EndTime "10:31:55 PST"]
[Termination "Kotofeyca won by resignation"]

1. e4 {[%clk 0:03:00.9]} 1... c5 {[%clk 0:02:59.4]} 2. Nf3 {[%clk 0:02:59.6]}
2... d6 {[%clk 0:02:59.8]} 3. Bb5+ {[%clk 0:02:58.2]} 3... Bd7 {[%clk
0:02:59.1]} 4. Bxd7+ {[%clk 0:02:56.5]} 4... Qxd7 {[%clk 0:03:00]} 5. c4 {[%clk
0:02:56.6]} 5... Nf6 {[%clk 0:03:00.3]} 6. Nc3 {[%clk 0:02:55.6]} 6... Nc6
{[%clk 0:03:00.8]} 7. d4 {[%clk 0:02:51.7]} 7... cxd4 {[%clk 0:03:01]} 8. Nxd4
{[%clk 0:02:52.6]} 8... Qg4 {[%clk 0:03:01.1]} 9. Qxg4 {[%clk 0:02:41.2]} 9...
Nxg4 {[%clk 0:03:00.4]} 10. Nxc6 {[%clk 0:02:35.8]} 10... bxc6 {[%clk
0:03:00.1]} 11. Bf4 {[%clk 0:02:35]} 11... g6 {[%clk 0:02:33]} 12. f3 {[%clk
0:02:27.3]} 12... Bh6 {[%clk 0:02:05.1]} 13. Bxh6 {[%clk 0:02:11.3]} 13... Nxh6
{[%clk 0:02:04.7]} 14. h4 {[%clk 0:02:11.3]} 14... f5 {[%clk 0:02:01.4]} 15. h5
{[%clk 0:02:10.4]} 15... Nf7 {[%clk 0:02:01]} 16. Ke2 {[%clk 0:02:01.8]} 16...
O-O-O {[%clk 0:01:55.9]} 17. Rad1 {[%clk 0:02:00.2]} 17... Kc7 {[%clk
0:01:55.3]} 18. b3 {[%clk 0:01:59.8]} 18... Ng5 {[%clk 0:01:46.5]} 19. Ke3
{[%clk 0:01:54.7]} 19... fxe4 {[%clk 0:01:39.2]} 20. f4 {[%clk 0:01:49.8]} 20...
Ne6 {[%clk 0:01:35.9]} 21. Kxe4 {[%clk 0:01:47.8]} 21... Rdf8 {[%clk 0:01:29.2]}
22. g3 {[%clk 0:01:47.3]} 22... Rhg8 {[%clk 0:01:26.6]} 23. hxg6 {[%clk
0:01:46.3]} 23... hxg6 {[%clk 0:01:25.7]} 24. Rh7 {[%clk 0:01:44.7]} 24... Kd7
{[%clk 0:01:24.1]} 25. b4 {[%clk 0:01:37.2]} 25... Rh8 {[%clk 0:00:46.3]} 26.
Rdh1 {[%clk 0:01:33.8]} 26... Rxh7 {[%clk 0:00:45.6]} 27. Rxh7 {[%clk
0:01:34.7]} 27... Rb8 {[%clk 0:00:44.7]} 28. a3 {[%clk 0:01:32.2]} 28... a5
{[%clk 0:00:43.2]} 29. b5 {[%clk 0:01:29.7]} 29... cxb5 {[%clk 0:00:32.4]} 30.
cxb5 {[%clk 0:01:24.4]} 30... Rc8 {[%clk 0:00:30.8]} 31. Nd5 {[%clk 0:01:24.1]}
31... Rc4+ {[%clk 0:00:30.3]} 32. Ke3 {[%clk 0:01:23.8]} 32... Nd4 {[%clk
0:00:19.1]} 33. Rxe7+ {[%clk 0:01:23.6]} 33... Kd8 {[%clk 0:00:19.3]} 34. b6
{[%clk 0:01:21.2]} 34... Nf5+ {[%clk 0:00:18.5]} 35. Kd3 {[%clk 0:01:18.5]}
35... Rd4+ {[%clk 0:00:18.5]} 36. Kc3 {[%clk 0:01:18.7]} 36... Rxd5 {[%clk
0:00:18]} 37. b7 {[%clk 0:01:18]} 37... Rb5 {[%clk 0:00:17.6]} 38. Rh7 {[%clk
0:01:12.1]} 38... Ne7 {[%clk 0:00:15.3]} 39. Rh8+ {[%clk 0:01:09]} 39... Kc7
{[%clk 0:00:14.8]} 40. Rh7 {[%clk 0:01:09.6]} 40... Kd7 {[%clk 0:00:14.6]} 41.
g4 {[%clk 0:01:06.6]} 41... Rxb7 {[%clk 0:00:15.1]} 42. f5 {[%clk 0:01:07]}
42... gxf5 {[%clk 0:00:15.8]} 43. gxf5 {[%clk 0:01:07.9]} 43... Ke8 {[%clk
0:00:14.9]} 44. Kc4 {[%clk 0:01:03.6]} 44... Rc7+ {[%clk 0:00:13.9]} 45. Kd3
{[%clk 0:00:58.6]} 45... Rc5 {[%clk 0:00:13.5]} 46. f6 {[%clk 0:00:58.5]} 46...
Nd5 {[%clk 0:00:13.1]} 47. f7+ {[%clk 0:00:36.6]} 47... Ke7 {[%clk 0:00:13]} 48.
Kd4 {[%clk 0:00:36.5]} 48... Nc7 {[%clk 0:00:12.6]} 49. f8=Q+ {[%clk 0:00:35.5]}
49... Kxf8 {[%clk 0:00:11.7]} 50. Rd7 {[%clk 0:00:36.1]} 50... Rc6 {[%clk
0:00:10.6]} 51. Rd8+ {[%clk 0:00:33.4]} 51... Ke7 {[%clk 0:00:10.7]} 52. Rh8
{[%clk 0:00:33.7]} 52... Ne6+ {[%clk 0:00:11.2]} 53. Kd3 {[%clk 0:00:33.5]}
53... Rc5 {[%clk 0:00:11.4]} 54. Rh7+ {[%clk 0:00:33.3]} 54... Kd8 {[%clk
0:00:11.9]} 55. Ra7 {[%clk 0:00:33.1]} 55... Kc8 {[%clk 0:00:11.9]} 56. Ke4
{[%clk 0:00:32.3]} 56... Nc7 {[%clk 0:00:12.5]} 0-1

[Event "*** Titled Tuesday Blitz"]
[Site "Chess.com"]
[Date "2021.02.02"]
[Round "3"]
[White "EugeneRougon"]
[Black "LucaBrasi1968"]
[Result "1-0"]
[WhiteElo "2744"]
[BlackElo "2504"]
[TimeControl "180+1"]
[EndTime "10:31:56 PST"]
[Termination "EugeneRougon won on time"]

1. e4 {[%clk 0:03:00.9]} 1... c6 {[%clk 0:02:59.7]} 2. d4 {[%clk 0:03:00.7]}
2... d5 {[%clk 0:03:00]} 3. Nc3 {[%clk 0:03:00.5]} 3... dxe4 {[%clk 0:03:00.1]}
4. Nxe4 {[%clk 0:03:01.4]} 4... Bf5 {[%clk 0:03:00.2]} 5. Ng3 {[%clk 0:03:01.2]}
5... Bg6 {[%clk 0:03:00.5]} 6. h4 {[%clk 0:03:01.7]} 6... h6 {[%clk 0:03:00.6]}
7. Nf3 {[%clk 0:03:02.3]} 7... Nf6 {[%clk 0:03:00.6]} 8. Ne5 {[%clk 0:03:01.9]}
8... Bh7 {[%clk 0:03:00.6]} 9. Bd3 {[%clk 0:03:02.5]} 9... Nbd7 {[%clk
0:02:59.9]} 10. Bf4 {[%clk 0:02:50.6]} 10... Nxe5 {[%clk 0:02:51.8]} 11. Bxe5
{[%clk 0:02:47.5]} 11... Bxd3 {[%clk 0:02:50.1]} 12. Qxd3 {[%clk 0:02:48.4]}
12... e6 {[%clk 0:02:50]} 13. O-O-O {[%clk 0:02:45.6]} 13... Be7 {[%clk
0:02:33.9]} 14. Kb1 {[%clk 0:02:35.8]} 14... Qd7 {[%clk 0:02:26.6]} 15. c4
{[%clk 0:02:28.2]} 15... O-O-O {[%clk 0:02:26.2]} 16. Qc2 {[%clk 0:01:53.7]}
16... Rhg8 {[%clk 0:02:14.1]} 17. f3 {[%clk 0:01:49.7]} 17... Bd6 {[%clk
0:02:02]} 18. Qa4 {[%clk 0:01:36.2]} 18... a6 {[%clk 0:01:59.1]} 19. Ne2 {[%clk
0:01:29.2]} 19... Qc7 {[%clk 0:01:48.1]} 20. f4 {[%clk 0:01:07.4]} 20... Ne4
{[%clk 0:01:45.9]} 21. Rhf1 {[%clk 0:01:03.4]} 21... f5 {[%clk 0:01:39.1]} 22.
Qc2 {[%clk 0:00:54.5]} 22... Bxe5 {[%clk 0:01:38.2]} 23. fxe5 {[%clk 0:00:49]}
23... c5 {[%clk 0:01:34.8]} 24. g4 {[%clk 0:00:33.7]} 24... g6 {[%clk
0:01:25.1]} 25. Nf4 {[%clk 0:00:33.1]} 25... Rxd4 {[%clk 0:01:04.6]} 26. Rxd4
{[%clk 0:00:27.4]} 26... cxd4 {[%clk 0:01:04.3]} 27. gxf5 {[%clk 0:00:18.8]}
27... gxf5 {[%clk 0:01:02.2]} 28. Nxe6 {[%clk 0:00:18.1]} 28... Qxe5 {[%clk
0:01:02.4]} 29. Nf4 {[%clk 0:00:18.4]} 29... Kb8 {[%clk 0:00:49.5]} 30. a3
{[%clk 0:00:18]} 30... Rc8 {[%clk 0:00:46.8]} 31. Nd3 {[%clk 0:00:17.6]} 31...
Qe6 {[%clk 0:00:45.6]} 32. c5 {[%clk 0:00:17.9]} 32... Qd5 {[%clk 0:00:41.3]}
33. Rc1 {[%clk 0:00:17.6]} 33... Rc6 {[%clk 0:00:32.6]} 34. Qh2+ {[%clk
0:00:17.3]} 34... Ka7 {[%clk 0:00:31.3]} 35. Nb4 {[%clk 0:00:13.9]} 35... Qe6
{[%clk 0:00:20.6]} 36. Nxc6+ {[%clk 0:00:12.9]} 36... Qxc6 {[%clk 0:00:21.2]}
37. Qe2 {[%clk 0:00:07.7]} 37... Qd5 {[%clk 0:00:16.9]} 38. Qd3 {[%clk
0:00:07.3]} 38... Nxc5 {[%clk 0:00:15.3]} 39. Qc4 {[%clk 0:00:07.3]} 39... Qxc4
{[%clk 0:00:07.7]} 40. Rxc4 {[%clk 0:00:08.2]} 40... Ne6 {[%clk 0:00:07.9]} 41.
Rc8 {[%clk 0:00:08.3]} 41... Kb6 {[%clk 0:00:08.4]} 42. Re8 {[%clk 0:00:07.8]}
42... Nf4 {[%clk 0:00:06.4]} 43. Rf8 {[%clk 0:00:08.1]} 43... Ne2 {[%clk
0:00:03.2]} 44. Rxf5 {[%clk 0:00:05.6]} 44... d3 {[%clk 0:00:02.7]} 45. Rd5
{[%clk 0:00:05.9]} 45... Nf4 {[%clk 0:00:01.5]} 46. Rd4 {[%clk 0:00:06.1]} 46...
Ng2 {[%clk 0:00:01.5]} 47. h5 {[%clk 0:00:05.5]} 1-0

[Event "*** Titled Tuesday Blitz"]
[Site "Chess.com"]
[Date "2021.02.02"]
[Round "3"]
[White "Kostya_Nikologorskiy"]
[Black "FloMaster111"]
[Result "1-0"]
[WhiteElo "2683"]
[BlackElo "2479"]
[TimeControl "180+1"]
[EndTime "10:31:56 PST"]
[Termination "Kostya_Nikologorskiy won on time"]

1. e4 {[%clk 0:03:00.9]} 1... c5 {[%clk 0:02:51.9]} 2. Nf3 {[%clk 0:02:56.5]}
2... Nc6 {[%clk 0:02:50.9]} 3. Nc3 {[%clk 0:02:55.9]} 3... g6 {[%clk 0:02:47.6]}
4. h4 {[%clk 0:02:54]} 4... h5 {[%clk 0:02:43.4]} 5. Bc4 {[%clk 0:02:49.3]} 5...
Bg7 {[%clk 0:02:35.4]} 6. d3 {[%clk 0:02:46.6]} 6... e6 {[%clk 0:02:28]} 7. Bf4
{[%clk 0:02:34.8]} 7... Nh6 {[%clk 0:02:09.8]} 8. Nb5 {[%clk 0:02:28.6]} 8... e5
{[%clk 0:02:03.6]} 9. Bxh6 {[%clk 0:02:14.6]} 9... Bxh6 {[%clk 0:02:01.4]} 10.
Nd6+ {[%clk 0:02:14.6]} 10... Kf8 {[%clk 0:01:56]} 11. Nxf7 {[%clk 0:02:15.5]}
11... Qa5+ {[%clk 0:01:52.9]} 12. c3 {[%clk 0:02:11.9]} 12... b5 {[%clk
0:01:25.3]} 13. Bd5 {[%clk 0:02:03.9]} 13... Bg7 {[%clk 0:01:06.2]} 14. N7xe5
{[%clk 0:01:57.9]} 14... Nxe5 {[%clk 0:01:02.7]} 15. Nxe5 {[%clk 0:01:56.8]}
15... Bxe5 {[%clk 0:01:03.6]} 16. Bxa8 {[%clk 0:01:40]} 16... b4 {[%clk
0:01:01.8]} 17. O-O {[%clk 0:01:32.6]} 17... bxc3 {[%clk 0:01:01.3]} 18. bxc3
{[%clk 0:01:32.6]} 18... Bxc3 {[%clk 0:01:01.1]} 19. Rb1 {[%clk 0:01:28.4]}
19... Kg7 {[%clk 0:00:59.3]} 20. Bd5 {[%clk 0:01:15.1]} 20... Bd4 {[%clk
0:00:57.4]} 21. Rb8 {[%clk 0:01:13]} 21... Qc7 {[%clk 0:00:55]} 22. Rb3 {[%clk
0:00:58.7]} 22... Rf8 {[%clk 0:00:54.3]} 23. Qe2 {[%clk 0:00:46.1]} 23... a5
{[%clk 0:00:45.9]} 24. e5 {[%clk 0:00:45]} 24... Bxe5 {[%clk 0:00:34.8]} 25. Qe4
{[%clk 0:00:37.5]} 25... Rf4 {[%clk 0:00:28.1]} 26. Qe2 {[%clk 0:00:29.9]} 26...
Rxh4 {[%clk 0:00:26.6]} 27. Re1 {[%clk 0:00:30.3]} 27... d6 {[%clk 0:00:21.6]}
28. d4 {[%clk 0:00:29.2]} 28... Rxd4 {[%clk 0:00:21.5]} 29. Be4 {[%clk
0:00:25.5]} 29... Qf7 {[%clk 0:00:18]} 30. Rf3 {[%clk 0:00:24.2]} 30... Qc4
{[%clk 0:00:14.9]} 31. Bd3 {[%clk 0:00:23.3]} 31... Qd5 {[%clk 0:00:11.7]} 32.
Bc2 {[%clk 0:00:21.5]} 32... Bg4 {[%clk 0:00:10.9]} 33. Be4 {[%clk 0:00:21]}
33... Bxf3 {[%clk 0:00:11.3]} 34. Bxf3 {[%clk 0:00:21.3]} 34... Qc4 {[%clk
0:00:11.4]} 35. Qe3 {[%clk 0:00:19.6]} 35... Rh4 {[%clk 0:00:09.6]} 36. g3
{[%clk 0:00:18.6]} 36... Rd4 {[%clk 0:00:06.8]} 37. Qg5 {[%clk 0:00:19]} 37...
Qf7 {[%clk 0:00:07.1]} 38. Bxh5 {[%clk 0:00:18.4]} 38... Qf6 {[%clk 0:00:07]}
39. Qxf6+ {[%clk 0:00:17.7]} 39... Kxf6 {[%clk 0:00:07.9]} 40. Bf3 {[%clk
0:00:18.6]} 40... Ra4 {[%clk 0:00:07.5]} 41. Re2 {[%clk 0:00:18.3]} 41... Bd4
{[%clk 0:00:07.6]} 42. Kg2 {[%clk 0:00:19.2]} 42... Ra3 {[%clk 0:00:07.8]} 43.
Bd5 {[%clk 0:00:19.6]} 43... Kg7 {[%clk 0:00:07.5]} 44. Re6 {[%clk 0:00:20]}
44... c4 {[%clk 0:00:05.3]} 45. Bxc4 {[%clk 0:00:19.3]} 45... Bc5 {[%clk
0:00:05.4]} 46. Re7+ {[%clk 0:00:19]} 46... Kh6 {[%clk 0:00:05.3]} 47. f4 {[%clk
0:00:18.6]} 47... Rc3 {[%clk 0:00:05.5]} 48. Bg8 {[%clk 0:00:18]} 48... Rc2+
{[%clk 0:00:02.9]} 49. Kh3 {[%clk 0:00:18.1]} 49... g5 {[%clk 0:00:03.1]} 50. f5
{[%clk 0:00:18.5]} 50... g4+ {[%clk 0:00:01.5]} 51. Kxg4 {[%clk 0:00:18.3]} 1-0

[Event "*** Titled Tuesday Blitz"]
[Site "Chess.com"]
[Date "2021.02.02"]
[Round "3"]
[White "Alexsur1981"]
[Black "CheckThis4"]
[Result "1-0"]
[WhiteElo "2842"]
[BlackElo "2576"]
[TimeControl "180+1"]
[EndTime "10:31:57 PST"]
[Termination "Alexsur1981 won by checkmate"]

1. e4 {[%clk 0:03:00.9]} 1... c5 {[%clk 0:02:59.6]} 2. Nc3 {[%clk 0:03:00.5]}
2... Nc6 {[%clk 0:02:59]} 3. Bb5 {[%clk 0:03:00.6]} 3... Nd4 {[%clk 0:02:59]} 4.
Nf3 {[%clk 0:03:00.4]} 4... Nxb5 {[%clk 0:02:56.4]} 5. Nxb5 {[%clk 0:03:01.3]}
5... d6 {[%clk 0:02:50.9]} 6. d4 {[%clk 0:03:00.8]} 6... a6 {[%clk 0:02:51]} 7.
Nc3 {[%clk 0:03:00.9]} 7... cxd4 {[%clk 0:02:51]} 8. Qxd4 {[%clk 0:03:01.8]}
8... e5 {[%clk 0:02:50.9]} 9. Qd3 {[%clk 0:03:02]} 9... h6 {[%clk 0:02:50.1]}
10. Nd2 {[%clk 0:03:01.5]} 10... Be6 {[%clk 0:02:47.1]} 11. Nc4 {[%clk
0:03:00.9]} 11... Nf6 {[%clk 0:02:44.6]} 12. Ne3 {[%clk 0:03:01]} 12... Be7
{[%clk 0:02:42.9]} 13. O-O {[%clk 0:03:00.3]} 13... O-O {[%clk 0:02:39.8]} 14.
Ncd5 {[%clk 0:03:00.7]} 14... Rc8 {[%clk 0:02:32.1]} 15. c3 {[%clk 0:02:59.9]}
15... Nd7 {[%clk 0:02:24.1]} 16. Rd1 {[%clk 0:02:50.5]} 16... Bg5 {[%clk
0:02:16.6]} 17. Nf5 {[%clk 0:02:47.1]} 17... Nc5 {[%clk 0:02:04.2]} 18. Qf3
{[%clk 0:02:44.2]} 18... Bxf5 {[%clk 0:01:55.9]} 19. Qxf5 {[%clk 0:02:42.6]}
19... Ne6 {[%clk 0:01:50.4]} 20. Bxg5 {[%clk 0:02:40.6]} 20... hxg5 {[%clk
0:01:48.5]} 21. g3 {[%clk 0:02:30]} 21... g6 {[%clk 0:01:42.7]} 22. Qf3 {[%clk
0:02:22.9]} 22... Kg7 {[%clk 0:01:41.1]} 23. Rd2 {[%clk 0:02:20.6]} 23... f5
{[%clk 0:01:37.6]} 24. Rad1 {[%clk 0:02:15.7]} 24... g4 {[%clk 0:01:31.8]} 25.
Qe2 {[%clk 0:02:14]} 25... Ng5 {[%clk 0:01:30.1]} 26. exf5 {[%clk 0:02:07]}
26... Nf3+ {[%clk 0:01:25.3]} 27. Kg2 {[%clk 0:02:05.9]} 27... Nxd2 {[%clk
0:01:19]} 28. f6+ {[%clk 0:02:04.6]} 28... Rxf6 {[%clk 0:01:15.1]} 29. Nxf6
{[%clk 0:01:56.4]} 29... Qxf6 {[%clk 0:01:07.7]} 30. Rxd2 {[%clk 0:01:56.3]}
30... Qe6 {[%clk 0:00:55.8]} 31. Qd3 {[%clk 0:01:43.7]} 31... Rd8 {[%clk
0:00:53.2]} 32. c4 {[%clk 0:01:41.4]} 32... Rd7 {[%clk 0:00:51.7]} 33. b3 {[%clk
0:01:39.1]} 33... Qf5 {[%clk 0:00:43.4]} 34. Qd5 {[%clk 0:01:36.8]} 34... e4
{[%clk 0:00:38.7]} 35. Qd4+ {[%clk 0:01:35.6]} 35... Kh7 {[%clk 0:00:36.3]} 36.
Kg1 {[%clk 0:01:30.8]} 36... Qf3 {[%clk 0:00:30.8]} 37. Qe3 {[%clk 0:01:25.3]}
37... Kg7 {[%clk 0:00:24.6]} 38. Rd4 {[%clk 0:01:23.5]} 38... Rf7 {[%clk
0:00:18]} 39. Rxe4 {[%clk 0:01:13.6]} 39... Qd1+ {[%clk 0:00:17.4]} 40. Kg2
{[%clk 0:01:12.9]} 40... Rf3 {[%clk 0:00:14]} 41. Qe2 {[%clk 0:01:07.5]} 41...
Qc1 {[%clk 0:00:13.2]} 42. Rxg4 {[%clk 0:01:06]} 42... Rf7 {[%clk 0:00:12.5]}
43. Re4 {[%clk 0:00:56.9]} 43... Qb1 {[%clk 0:00:12.6]} 44. Re7 {[%clk
0:00:54.8]} 44... Qf5 {[%clk 0:00:11.9]} 45. Rxf7+ {[%clk 0:00:54.3]} 45... Qxf7
{[%clk 0:00:12.4]} 46. h4 {[%clk 0:00:52.5]} 46... b5 {[%clk 0:00:12]} 47. Qd3
{[%clk 0:00:43.4]} 47... Qb7+ {[%clk 0:00:10.9]} 48. Qd5 {[%clk 0:00:41.8]}
48... Qe7 {[%clk 0:00:10.5]} 49. cxb5 {[%clk 0:00:37]} 49... axb5 {[%clk
0:00:11.4]} 50. a4 {[%clk 0:00:33.5]} 50... bxa4 {[%clk 0:00:09.9]} 51. bxa4
{[%clk 0:00:34.4]} 51... Qe2 {[%clk 0:00:09.3]} 52. a5 {[%clk 0:00:28.4]} 52...
Kh6 {[%clk 0:00:09.6]} 53. Qxd6 {[%clk 0:00:26.9]} 53... Qe4+ {[%clk 0:00:09.4]}
54. Kh2 {[%clk 0:00:27.3]} 54... Qe2 {[%clk 0:00:08.2]} 55. Qf8+ {[%clk
0:00:26.2]} 55... Kh7 {[%clk 0:00:08]} 56. Qf7+ {[%clk 0:00:26.6]} 56... Kh6
{[%clk 0:00:08.2]} 57. Qf4+ {[%clk 0:00:27.5]} 57... Kh7 {[%clk 0:00:07.8]} 58.
Qf6 {[%clk 0:00:26]} 58... Kh6 {[%clk 0:00:06.5]} 59. Qh8# {[%clk 0:00:25.4]}
1-0

[Event "*** Titled Tuesday Blitz"]
[Site "Chess.com"]
[Date "2021.02.02"]
[Round "3"]
[White "Vnebo"]
[Black "amatatanav"]
[Result "1-0"]
[WhiteElo "2731"]
[BlackElo "2439"]
[TimeControl "180+1"]
[EndTime "10:31:58 PST"]
[Termination "Vnebo won on time"]

1. c4 {[%clk 0:03:00.9]} 1... e6 {[%clk 0:03:00]} 2. g3 {[%clk 0:02:58.2]} 2...
d5 {[%clk 0:03:00.9]} 3. Nf3 {[%clk 0:02:57.6]} 3... Nf6 {[%clk 0:03:01.6]} 4.
Bg2 {[%clk 0:02:57.3]} 4... Be7 {[%clk 0:03:02.2]} 5. O-O {[%clk 0:02:57]} 5...
O-O {[%clk 0:03:02.9]} 6. d4 {[%clk 0:02:57.6]} 6... Nbd7 {[%clk 0:03:02.4]} 7.
Qc2 {[%clk 0:02:56.1]} 7... c6 {[%clk 0:03:02.8]} 8. b3 {[%clk 0:02:56.3]} 8...
b6 {[%clk 0:03:02.8]} 9. Rd1 {[%clk 0:02:52.7]} 9... Ba6 {[%clk 0:03:02.9]} 10.
Nbd2 {[%clk 0:02:50.8]} 10... Rc8 {[%clk 0:03:02.8]} 11. e4 {[%clk 0:02:50.3]}
11... c5 {[%clk 0:03:00.8]} 12. e5 {[%clk 0:02:38.7]} 12... Ne8 {[%clk
0:03:00.7]} 13. cxd5 {[%clk 0:02:38.2]} 13... cxd4 {[%clk 0:02:39.7]} 14. Qb2
{[%clk 0:02:32.6]} 14... exd5 {[%clk 0:02:30]} 15. Qxd4 {[%clk 0:02:11.6]} 15...
Nc7 {[%clk 0:02:29.6]} 16. Bb2 {[%clk 0:01:58.1]} 16... Nc5 {[%clk 0:02:28.5]}
17. Nf1 {[%clk 0:01:41.6]} 17... N7e6 {[%clk 0:01:25.6]} 18. Qxd5 {[%clk
0:01:35.1]} 18... Nd3 {[%clk 0:01:24.5]} 19. Qxd8 {[%clk 0:01:23.4]} 19... Rfxd8
{[%clk 0:01:25.4]} 20. Bc1 {[%clk 0:01:06]} 20... Rc2 {[%clk 0:01:16.7]} 21. Be3
{[%clk 0:01:02]} 21... g5 {[%clk 0:00:26.3]} 22. Ne1 {[%clk 0:00:54.1]} 22...
Nxe1 {[%clk 0:00:22.6]} 23. Rxe1 {[%clk 0:00:54.7]} 23... g4 {[%clk 0:00:04.6]}
24. Be4 {[%clk 0:00:48.8]} 24... Bd3 {[%clk 0:00:05]} 25. Bxd3 {[%clk
0:00:43.7]} 25... Rxd3 {[%clk 0:00:05.9]} 26. Rec1 {[%clk 0:00:42.3]} 26... Rxc1
{[%clk 0:00:04.6]} 27. Rxc1 {[%clk 0:00:41.5]} 27... Bc5 {[%clk 0:00:05.1]} 28.
Kg2 {[%clk 0:00:31.2]} 28... a5 {[%clk 0:00:04.8]} 29. h3 {[%clk 0:00:28.3]}
29... h5 {[%clk 0:00:04.9]} 30. hxg4 {[%clk 0:00:28.3]} 30... hxg4 {[%clk
0:00:04.9]} 31. Rc4 {[%clk 0:00:28.5]} 31... Bxe3 {[%clk 0:00:03.4]} 32. Nxe3
{[%clk 0:00:27.6]} 32... Rd2 {[%clk 0:00:03.5]} 33. Rc2 {[%clk 0:00:16.5]} 33...
Rxc2 {[%clk 0:00:03.1]} 34. Nxc2 {[%clk 0:00:16.5]} 34... Kg7 {[%clk 0:00:02.9]}
35. Ne3 {[%clk 0:00:15.7]} 35... Nc5 {[%clk 0:00:02.9]} 36. Nxg4 {[%clk
0:00:14.9]} 36... Nd3 {[%clk 0:00:03.4]} 37. f4 {[%clk 0:00:13.8]} 37... Nc1
{[%clk 0:00:03.7]} 38. a3 {[%clk 0:00:10.6]} 38... Nxb3 {[%clk 0:00:04]} 39. Ne3
{[%clk 0:00:11.1]} 39... Nd2 {[%clk 0:00:04.2]} 40. Kf2 {[%clk 0:00:10.6]} 40...
Nb1 {[%clk 0:00:03.7]} 41. Nc4 {[%clk 0:00:09.8]} 41... b5 {[%clk 0:00:03.3]}
42. Nxa5 {[%clk 0:00:10.1]} 42... Nxa3 {[%clk 0:00:04]} 43. Nb3 {[%clk
0:00:10.1]} 43... Kg6 {[%clk 0:00:03.8]} 44. g4 {[%clk 0:00:09.6]} 44... Nc4
{[%clk 0:00:02.7]} 45. Nd4 {[%clk 0:00:08.2]} 45... b4 {[%clk 0:00:02.5]} 46.
Kf3 {[%clk 0:00:08.6]} 46... Nd2+ {[%clk 0:00:02.4]} 47. Ke3 {[%clk 0:00:08.8]}
47... Nf1+ {[%clk 0:00:01.9]} 48. Ke2 {[%clk 0:00:07.6]} 48... Nh2 {[%clk
0:00:02]} 49. g5 {[%clk 0:00:06.2]} 1-0

[Event "*** Titled Tuesday Blitz"]
[Site "Chess.com"]
[Date "2021.02.02"]
[Round "3"]
[White "dretch"]
[Black "Iskusnyh"]
[Result "1-0"]
[WhiteElo "2849"]
[BlackElo "2619"]
[TimeControl "180+1"]
[EndTime "10:31:59 PST"]
[Termination "dretch won on time"]

1. d4 {[%clk 0:03:00.9]} 1... d5 {[%clk 0:02:59.2]} 2. c4 {[%clk 0:03:00.6]}
2... c6 {[%clk 0:02:59.3]} 3. Nc3 {[%clk 0:02:57.5]} 3... Nf6 {[%clk 0:02:58.7]}
4. e3 {[%clk 0:02:57.8]} 4... e6 {[%clk 0:02:58]} 5. Bd3 {[%clk 0:02:56.6]} 5...
a6 {[%clk 0:02:45.8]} 6. b3 {[%clk 0:02:49]} 6... c5 {[%clk 0:02:27.9]} 7. Nf3
{[%clk 0:02:40.1]} 7... Nc6 {[%clk 0:02:27.1]} 8. O-O {[%clk 0:02:09.4]} 8...
cxd4 {[%clk 0:02:10.2]} 9. exd4 {[%clk 0:02:06.8]} 9... dxc4 {[%clk 0:02:04.5]}
10. bxc4 {[%clk 0:02:04.5]} 10... Nxd4 {[%clk 0:02:00.9]} 11. Nxd4 {[%clk
0:02:04.5]} 11... Qxd4 {[%clk 0:02:00.3]} 12. Bb2 {[%clk 0:02:03.4]} 12... Qh4
{[%clk 0:01:21.1]} 13. Qe2 {[%clk 0:01:26.1]} 13... Bd6 {[%clk 0:00:58.9]} 14.
g3 {[%clk 0:01:18.8]} 14... Qh3 {[%clk 0:00:56.1]} 15. Ne4 {[%clk 0:01:05.2]}
15... Be7 {[%clk 0:00:42]} 16. Nxf6+ {[%clk 0:00:40]} 16... gxf6 {[%clk
0:00:38.7]} 17. Be4 {[%clk 0:00:37.4]} 17... h5 {[%clk 0:00:31.5]} 18. Bg2
{[%clk 0:00:29.1]} 18... Qg4 {[%clk 0:00:30.7]} 19. Bf3 {[%clk 0:00:25.5]} 19...
Qg5 {[%clk 0:00:28.5]} 20. h4 {[%clk 0:00:20.6]} 20... Qf5 {[%clk 0:00:16.8]}
21. Rab1 {[%clk 0:00:19.9]} 21... Rg8 {[%clk 0:00:16.2]} 22. Kh2 {[%clk
0:00:18.5]} 22... Bd6 {[%clk 0:00:14.7]} 23. Rbd1 {[%clk 0:00:11.1]} 23... Be5
{[%clk 0:00:14.1]} 24. Bxe5 {[%clk 0:00:10]} 24... Qxe5 {[%clk 0:00:13.4]} 25.
Qd2 {[%clk 0:00:08.2]} 25... Qc7 {[%clk 0:00:13.9]} 26. Rb1 {[%clk 0:00:06.2]}
26... Rb8 {[%clk 0:00:12.7]} 27. Bxh5 {[%clk 0:00:05.4]} 27... Rh8 {[%clk
0:00:12.1]} 28. Qe2 {[%clk 0:00:05]} 28... Bd7 {[%clk 0:00:11.5]} 29. Kg2 {[%clk
0:00:04.9]} 29... Ke7 {[%clk 0:00:11.4]} 30. Bf3 {[%clk 0:00:05.3]} 30... Bc6
{[%clk 0:00:11.3]} 31. Rfd1 {[%clk 0:00:05.6]} 31... Bxf3+ {[%clk 0:00:10.9]}
32. Qxf3 {[%clk 0:00:06.5]} 32... Rhd8 {[%clk 0:00:08.7]} 33. Rxd8 {[%clk
0:00:05.9]} 33... Qxd8 {[%clk 0:00:05.7]} 34. Rxb7+ {[%clk 0:00:06]} 34... Kf8
{[%clk 0:00:05.5]} 35. Rxb8 {[%clk 0:00:05.5]} 35... Qxb8 {[%clk 0:00:04.4]} 36.
Qxf6 {[%clk 0:00:06.3]} 36... Qb7+ {[%clk 0:00:03.8]} 37. Kh2 {[%clk 0:00:06.6]}
37... Qb6 {[%clk 0:00:03]} 38. Qf4 {[%clk 0:00:05.7]} 38... Qc5 {[%clk
0:00:02.7]} 39. Kh3 {[%clk 0:00:05.5]} 39... Qa3 {[%clk 0:00:02.6]} 40. Qb8+
{[%clk 0:00:04.3]} 40... Kg7 {[%clk 0:00:02.3]} 41. Qe5+ {[%clk 0:00:04.6]}
41... Kg8 {[%clk 0:00:02.6]} 42. Qe2 {[%clk 0:00:05.5]} 42... Qc3 {[%clk
0:00:01.9]} 43. Kg2 {[%clk 0:00:06]} 43... Qa1 {[%clk 0:00:02.1]} 44. Qg4+
{[%clk 0:00:06.1]} 44... Kf8 {[%clk 0:00:01.3]} 45. Qe2 {[%clk 0:00:05.9]} 45...
Qc1 {[%clk 0:00:01.2]} 46. h5 {[%clk 0:00:06.2]} 46... a5 {[%clk 0:00:01.6]} 47.
Qe5 {[%clk 0:00:05.4]} 47... a4 {[%clk 0:00:01.5]} 48. Qb8+ {[%clk 0:00:04.8]}
48... Kg7 {[%clk 0:00:01.2]} 49. Qe5+ {[%clk 0:00:05.4]} 49... Kf8 {[%clk
0:00:01.2]} 50. Qf6 {[%clk 0:00:05]} 1-0